bitfinex/quotes_ETHUSD_20260106
["timestamp","ask_amount","ask_price","bid_price","bid_amount"]
[1767698615497,1.99866832,3233.7,3233.1,0.5095385]
[1767698615700,2.02962918,3233.7,3233.1,0.5095385]
[1767698615890,2.02962918,3233.7,3233.0,2.00223771]
[1767698616704,0.03096086,3233.6,3233.0,2.00223771]
[1767698617076,0.03096086,3233.6,3233.0,5.09533422]
[1767698617519,0.03096086,3233.6,3233.0,2.00223771]
[1767698617678,0.03096086,3233.6,3233.0,5.09532192]
[1767698618011,0.03096086,3233.6,3233.0,5.91418126]
[1767698618403,1.99866832,3233.7,3233.0,5.91418126]
[1767698618728,0.002,3233.7,3233.1,2.00223771]
[1767698619219,0.002,3233.7,3233.1,5.09514889]
[1767698619383,0.002,3233.7,3233.2,2.00223771]
[1767698619706,0.002,3233.7,3233.4,2.00223771]
[1767698622280,0.002,3234.0,3233.4,5.0949547]
[1767698622510,1.97507204,3234.0,3233.4,3.09271699]
[1767698622710,0.002,3234.0,3233.4,5.0949547]
[1767698622893,0.002,3234.0,3233.5,2.00223771]
[1767698623098,0.002,3234.0,3233.6,2.51173318]
[1767698625608,0.002,3234.0,3233.7,2.00223771]
[1767698632011,1.70980488,3234.2,3233.6,3.09243822]
[1767698633246,1.70980488,3234.2,3233.4,6.18534483]
[1767698633444,1.70980488,3234.2,3233.5,0.03092624]
[1767698633612,1.70980488,3234.2,3233.6,0.62162711]
[1767698633817,1.70980488,3234.2,3233.4,3.0926251]
[1767698634132,1.74076574,3234.2,3233.4,3.0926251]
[1767698634826,1.70980488,3234.2,3233.4,3.0926251]
[1767698635320,1.70980488,3234.2,3233.3,6.1866225]
[1767698635721,1.74076574,3234.2,3233.3,6.1866225]
[1767698636053,1.74076574,3234.2,3233.4,0.69966225]
[1767698636744,1.70980488,3234.2,3233.4,0.69966225]
[1767698637113,0.03296086,3234.3,3233.4,2.43606342]
[1767698637315,0.03296086,3234.3,3233.6,1.73640117]
[1767698637520,0.002,3234.3,3233.6,1.73640117]
[1767698637771,0.002,3234.3,3233.7,2.2193037]
[1767698638356,0.002,3234.3,3233.7,2.2203037]
[1767698639648,0.002,3234.3,3233.7,1.73740117]
[1767698641139,0.002,3234.3,3233.8,1.72863317]
[1767698641720,1.45526207,3234.3,3233.7,0.001]
[1767698641925,1.43151632,3233.9,3233.3,0.001]
[1767698642227,1.45322814,3233.8,3233.3,0.001]
[1767698642444,1.43151632,3233.6,3232.6,6.92056409]
[1767698642626,1.43151632,3233.6,3232.6,3.09342633]
[1767698642826,1.43151632,3233.6,3232.7,3.09338509]
[1767698643122,1.43151632,3233.6,3232.5,3.09351005]
[1767698643123,1.43151632,3233.6,3232.8,3.09328817]
[1767698643428,1.43151632,3233.6,3232.9,3.09311295]
[1767698643731,1.43151632,3233.6,3233.0,0.94074694]
[1767698644036,0.84096086,3234.1,3233.6,0.01908717]
[1767698644252,0.84096086,3234.1,3233.6,1.74772034]
[1767698645247,0.002,3234.3,3233.6,1.74772034]
[1767698646049,0.002,3234.3,3233.7,1.72863317]
[1767698650426,0.002,3234.0,3233.7,1.72863317]
[1767698650942,0.002,3234.3,3233.7,1.72863317]
[1767698650943,0.002,3234.3,3234.0,1.72863317]
[1767698652327,2.03733358,3234.6,3233.8,3.09226707]
[1767698652529,1.22733358,3234.6,3233.8,4.82090024]
[1767698652844,1.22733358,3234.6,3233.6,7.69731239]
[1767698652845,1.2411437,3235.1,3234.3,1.72863317]
[1767698653047,1.21018284,3235.1,3234.5,1.72863317]
[1767698653246,0.002,3235.2,3234.5,1.72863317]
[1767698653766,0.03296086,3235.2,3234.5,1.72863317]
[1767698657653,3.12401324,3235.2,3234.1,1.72863317]
[1767698657955,0.80433451,3235.2,3234.1,2.29170661]
[1767698658170,0.80433451,3235.2,3234.3,3.09184108]
[1767698658334,0.03296086,3235.2,3234.3,3.09184108]
[1767698658865,0.03296086,3235.2,3234.2,4.82051127]
[1767698659644,0.03296086,3235.2,3234.3,1.72863317]
[1767698660866,3.12398241,3235.2,3234.3,1.72863317]
[1767698662867,6.21500396,3235.2,3234.3,1.72863317]
[1767698663169,0.002,3234.9,3234.3,1.72863317]
[1767698664653,0.03296086,3234.9,3234.3,1.72863317]
[1767698665640,0.002,3234.9,3234.3,1.72863317]
[1767698665843,0.03296086,3234.9,3234.3,1.72863317]
[1767698668388,0.002,3234.9,3234.3,1.72863317]
[1767698668555,0.03096086,3234.8,3234.3,1.72863317]
[1767698668757,0.03096086,3234.8,3234.3,2.21069728]
[1767698669478,0.002,3234.9,3234.3,2.21069728]
[1767698669777,0.03096086,3234.8,3234.3,2.21069728]
[1767698669977,0.002,3234.9,3234.3,1.72863317]
[1767698670275,0.03296086,3234.9,3234.3,1.72863317]
[1767698670573,0.002,3234.9,3234.3,1.72863317]
[1767698670758,0.03296086,3234.9,3234.3,1.72863317]
[1767698673760,0.03296086,3234.9,3233.8,1.50223701]
[1767698674075,0.03296086,3234.9,3233.9,0.76871026]
[1767698675376,0.03296086,3234.9,3234.2,0.001]
[1767698679185,0.03296086,3234.9,3234.2,1.50323701]
[1767698683188,3.09328781,3234.9,3234.2,1.50323701]
[1767698683357,3.12424867,3234.9,3234.2,1.50323701]
[1767698683554,0.85199719,3234.8,3234.2,1.50323701]
[1767698683762,0.03096086,3234.7,3234.2,1.50323701]
[1767698687164,3.12244084,3234.7,3234.2,1.50323701]
[1767698687591,3.12244084,3234.7,3234.5,0.001]
[1767698687889,0.03096086,3234.7,3234.5,0.001]
[1767698688071,0.39743657,3234.6,3234.5,0.001]
[1767698688871,0.85199719,3234.8,3234.5,1.50323701]
[1767698689184,0.03096086,3234.7,3234.5,1.50323701]
[1767698689377,0.03096086,3234.8,3234.5,1.50323701]
[1767698689682,0.812,3234.9,3234.5,1.50323701]
[1767698692095,0.002,3234.9,3234.5,1.50323701]
[1767698692290,0.812,3234.9,3234.5,1.50323701]
[1767698694997,0.03096086,3234.8,3234.5,1.50323701]
[1767698695616,0.03096086,3234.8,3234.5,1.39073491]
[1767698695893,0.42438844,3234.8,3234.3,1.28789114]
[1767698696812,3.5157833,3234.8,3234.3,1.28789114]
[1767698697170,0.42438844,3234.8,3234.3,1.28789114]
[1767698697701,3.51577698,3234.8,3234.3,1.28789114]
[1767698698301,3.51577359,3234.8,3234.3,1.28789114]
[1767698698776,0.81,3234.7,3234.3,1.28789114]
[1767698699072,0.03096086,3234.6,3234.3,1.28789114]
[1767698702618,0.812,3234.9,3234.6,1.28208159]
[1767698702919,0.812,3234.9,3234.6,1.30116286]
[1767698705013,0.812,3234.9,3234.2,0.001]
[1767698705014,3.90330442,3234.9,3234.3,1.28208159]
[1767698705503,0.812,3234.9,3234.3,1.28208159]
[1767698707324,3.90328995,3234.9,3234.3,1.28208159]
[1767698707522,0.812,3234.9,3234.3,1.28208159]
[1767698707817,3.90330502,3234.9,3234.3,1.28208159]
[1767698708415,0.812,3234.9,3234.3,1.28208159]
[1767698711015,3.90329097,3234.9,3234.3,1.28208159]
[1767698711711,3.90329097,3234.9,3234.6,0.001]
[1767698711917,4.60273067,3234.9,3234.6,0.001]
[1767698712291,1.5114397,3234.9,3234.6,0.001]
[1767698713120,1.5114397,3234.9,3234.6,1.28308159]
[1767698713922,0.7014397,3234.9,3234.6,1.28308159]
[1767698714102,0.812,3234.9,3234.6,1.28308159]
[1767698720215,0.002,3234.9,3234.6,1.28308159]
[1767698726693,0.002,3235.3,3234.6,3.09257237]
[1767698726894,0.002,3235.3,3234.7,1.28208159]
[1767698727094,0.002,3235.3,3234.8,1.28208159]
[1767698727294,0.002,3235.3,3234.9,1.28208159]
[1767698727715,0.002,3235.6,3234.8,0.74660616]
[1767698727921,0.002,3235.6,3234.9,1.28208159]
[1767698729026,1.80990542,3236.1,3234.8,5.33212119]
[1767698729234,1.80990542,3236.1,3235.1,4.37310964]
[1767698729417,3.08941818,3237.8,3236.1,1.28208159]
[1767698729603,3.08941818,3237.8,3236.3,1.28208159]
[1767698729604,3.33468911,3237.6,3236.3,1.28208159]
[1767698729919,0.00090015,3237.8,3236.5,1.28208159]
[1767698730133,0.00090015,3237.8,3236.5,1.49128975]
[1767698730334,3.89773759,3238.7,3236.5,1.49128975]
[1767698730335,0.18274665,3239.7,3237.0,1.28208159]
[1767698730507,0.09194007,3239.9,3238.2,1.28208159]
[1767698730508,0.02171182,3239.6,3238.2,1.28208159]
[1767698730701,4.58551503,3239.3,3238.2,1.28208159]
[1767698730925,0.46072269,3239.2,3238.2,1.28208159]
[1767698731123,3.08708671,3239.3,3238.2,1.28208159]
[1767698731321,0.02171182,3239.2,3238.2,1.28208159]
[1767698731524,0.02171182,3239.2,3236.5,0.20920816]
[1767698731525,0.02171182,3238.6,3237.9,1.14490043]
[1767698731722,0.02171182,3238.6,3236.4,1.14490043]
[1767698731723,0.46268908,3238.2,3236.4,1.14490043]
[1767698731932,0.46268908,3238.2,3236.3,4.58551503]
[1767698731933,0.02171182,3238.0,3236.9,1.14490043]
[1767698732138,0.45689068,3238.0,3236.9,1.14490043]
[1767698732439,0.45689068,3238.0,3235.6,3.24257799]
[1767698732440,0.5438693,3237.7,3235.6,3.24257799]
[1767698732736,1.19855764,3237.5,3236.1,1.14490043]
[1767698732927,1.19855764,3237.5,3236.2,1.14490043]
[1767698733239,4.26574431,3237.4,3236.3,1.14490043]
[1767698733438,7.3546428,3237.4,3236.3,1.14490043]
[1767698733663,3.11022698,3237.9,3236.4,1.14490043]
[1767698733964,3.10973858,3238.4,3236.8,1.14490043]
[1767698734104,3.10973858,3238.4,3236.5,0.57304155]
[1767698734105,3.10968105,3238.4,3237.2,1.14490043]
[1767698734417,1.17684582,3238.6,3237.2,1.14490043]
[1767698734418,3.08778303,3238.6,3237.2,1.14490043]
[1767698734806,6.17556606,3238.6,3237.2,1.14490043]
[1767698735012,1.19855764,3238.5,3237.2,1.14490043]
[1767698735218,3.08813538,3238.2,3237.3,1.95490043]
[1767698735417,1.19855764,3238.3,3237.3,1.95490043]
[1767698735418,4.28662998,3238.3,3237.3,1.95490043]
[1767698735624,0.002,3237.9,3237.4,1.14490043]
[1767698736617,0.002,3237.9,3237.4,1.95490043]
[1767698736822,0.002,3237.9,3237.4,0.81]
[1767698737841,0.73753073,3237.9,3237.4,0.81]
[1767698739447,3.08851689,3237.8,3237.4,0.81]
[1767698740239,3.08851689,3237.8,3237.0,1.95490043]
[1767698740629,4.26536271,3237.8,3236.9,1.95490043]
[1767698741038,7.3538796,3237.8,3236.9,1.95490043]
[1767698741229,1.98815804,3237.7,3236.9,1.95490043]
[1767698741431,3.08880308,3237.5,3236.6,1.14490043]
[1767698741632,1.17684582,3237.4,3236.4,0.81]
[1767698741831,1.17684582,3237.4,3236.4,1.95490043]
[1767698743656,1.19855764,3237.7,3236.5,1.14490043]
[1767698744419,1.17684582,3237.5,3236.5,1.14490043]
[1767698744654,1.60340117,3237.4,3236.5,1.14490043]
[1767698746562,3.08899391,3237.3,3236.5,1.14490043]
[1767698747350,4.26583973,3237.3,3236.5,1.14490043]
[1767698748760,4.26583973,3237.3,3236.8,0.001]
[1767698749542,1.17684582,3237.2,3236.8,0.001]
[1767698749742,1.19855764,3237.0,3235.9,1.14490043]
[1767698749942,0.73548336,3237.1,3236.1,1.14490043]
[1767698750143,3.08894318,3237.4,3236.5,1.14490043]
[1767698750370,6.17789583,3237.4,3236.5,1.14490043]
[1767698750537,3.08885505,3237.5,3236.6,1.15674654]
[1767698750865,3.08885505,3237.5,3236.7,1.14490043]
[1767698751064,4.26755806,3237.6,3236.7,1.14490043]
[1767698751065,0.002,3237.6,3236.8,1.14490043]
[1767698751444,3.09072053,3237.6,3236.8,1.14490043]
[1767698751634,0.30907205,3237.5,3236.8,1.14490043]
[1767698752667,1.48591787,3237.5,3236.7,0.81]
[1767698752867,3.08889849,3237.4,3236.7,1.95490043]
[1767698753068,3.08889849,3237.4,3236.8,1.14490043]
[1767698753266,3.39791842,3237.5,3236.8,1.14490043]
[1767698753566,0.6488639,3237.4,3236.8,1.14490043]
[1767698753771,3.0907368,3237.6,3236.8,1.14490043]
[1767698755166,0.002,3237.6,3236.8,1.14490043]
[1767698757670,3.09070768,3237.6,3236.8,1.14490043]
[1767698757848,0.76609833,3237.5,3236.8,1.14490043]
[1767698758848,3.85491486,3237.5,3236.8,1.14490043]
[1767698759553,1.48161958,3237.4,3236.7,0.81]
[1767698759742,1.5033314,3237.4,3236.7,0.81]
[1767698760082,1.48161958,3237.2,3236.5,1.44208399]
[1767698760441,1.48161958,3237.2,3236.3,2.25208399]
[1767698760636,1.5033314,3237.2,3236.3,2.25208399]
[1767698760842,1.48161958,3237.0,3236.3,2.25208399]
[1767698761066,1.5033314,3237.0,3236.1,1.44208399]
[1767698761250,1.52599227,3236.8,3236.1,1.44208399]
[1767698761567,1.52599227,3236.8,3235.9,2.25277383]
[1767698761771,1.54770409,3236.8,3235.9,2.25277383]
[1767698762542,1.52599227,3236.5,3235.9,0.81]
[1767698762942,1.52599227,3236.3,3235.9,0.81]
[1767698763167,1.52599227,3236.2,3235.9,0.81]
[1767698763366,0.77056981,3236.3,3235.6,3.24257799]
[1767698763666,2.29656208,3236.3,3235.6,3.24257799]
[1767698763897,1.52599227,3236.2,3235.6,3.24257799]
[1767698764675,0.77056981,3236.3,3235.6,3.24257799]
[1767698764849,1.52599227,3236.7,3235.7,1.44277383]
[1767698767168,0.02171182,3236.5,3235.7,1.44277383]
[1767698767543,1.54770409,3236.5,3235.6,3.24257799]
[1767698767765,1.54770409,3236.3,3235.6,3.24257799]
[1767698768254,0.02171182,3236.1,3235.6,3.24257799]
[1767698768650,1.54770409,3236.1,3235.6,3.24257799]
[1767698768856,1.54770409,3236.1,3235.0,1.44277383]
[1767698768857,1.54770409,3235.9,3235.0,1.44277383]
[1767698769051,1.54770409,3235.9,3235.0,2.25277383]
[1767698769257,3.24519627,3235.8,3235.0,2.25277383]
[1767698770290,0.15477041,3235.8,3235.0,2.25277383]
[1767698770587,0.15477041,3235.8,3235.1,1.44277383]
[1767698771683,0.15477041,3235.8,3235.2,1.44277383]
[1767698773696,0.15477041,3235.8,3235.4,0.001]
[1767698774399,0.02171182,3235.9,3235.4,0.001]
[1767698775610,3.11204645,3235.9,3235.4,0.001]
[1767698775902,4.63803872,3235.9,3235.4,0.001]
[1767698776079,7.72837335,3235.9,3235.4,0.001]
[1767698776280,1.52599227,3235.8,3235.4,0.001]
[1767698776590,0.77283734,3235.7,3235.4,0.001]
[1767698776780,6.20238108,3235.9,3235.4,0.001]
[1767698777423,3.11204645,3235.9,3235.4,0.001]
[1767698777613,6.20238108,3235.9,3235.4,0.001]
[1767698778081,1.52599227,3235.8,3235.0,0.81]
[1767698778276,2.29882961,3235.7,3235.0,0.81]
[1767698778478,1.52599227,3235.6,3235.0,0.81]
[1767698778713,1.52599227,3235.6,3234.8,1.44277383]
[1767698779780,0.77283734,3235.7,3235.0,1.44277383]
[1767698780006,3.09046645,3235.8,3235.0,1.44277383]
[1767698781108,3.09046645,3235.8,3235.0,1.47368573]
[1767698782095,3.09046645,3235.8,3235.0,1.44277383]
[1767698782300,3.09046645,3235.8,3235.1,1.47368477]
[1767698782611,3.09046645,3235.8,3235.1,1.44277383]
[1767698782811,0.7706795,3235.7,3235.1,1.44277383]
[1767698782999,1.52599227,3235.6,3234.9,3.0912598]
[1767698783202,1.52599227,3235.6,3235.0,0.03091188]
[1767698783403,1.52599227,3235.6,3234.9,3.0912598]
[1767698783878,1.52599227,3235.6,3234.8,3.09138122]
[1767698784079,1.52599227,3235.5,3234.7,4.53420995]
[1767698784280,1.52599227,3235.5,3234.7,3.09143612]
[1767698784512,1.52599227,3235.5,3234.6,3.93343775]
[1767698784708,1.52599227,3235.5,3234.7,3.09143621]
[1767698785893,1.52599227,3235.5,3234.6,0.811]
[1767698785894,1.52599227,3235.4,3234.6,3.90252392]
[1767698786091,1.52599227,3235.3,3234.6,3.90252392]
[1767698787579,1.52599227,3235.3,3234.6,0.811]
[1767698788315,2.06741953,3235.4,3234.6,0.811]
[1767698788510,2.06741953,3235.4,3234.6,3.90256008]
[1767698788684,5.15823134,3235.4,3234.6,2.25377383]
[1767698788884,0.51582313,3235.3,3234.6,2.25377383]
[1767698789307,0.002,3237.3,3235.4,29.648905]
[1767698789506,1.3989731,3238.2,3238.0,7.291266]
[1767698789682,0.81,3238.1,3237.9,7.24282506]
[1767698789887,0.22089731,3238.0,3237.9,7.24282506]
[1767698790083,0.22089731,3238.0,3237.2,1.44277383]
[1767698790889,0.22089731,3238.0,3236.7,3.08955886]
[1767698790890,4.75847519,3238.0,3236.7,3.08955412]
[1767698791205,1.46509487,3237.9,3236.8,1.44277383]
[1767698791728,1.46509487,3237.9,3236.5,1.70950936]
[1767698791930,1.48078098,3237.7,3236.5,1.70950936]
[1767698792086,4.56967947,3237.4,3235.8,1.70950936]
[1767698792290,1.48078098,3237.3,3235.8,1.70950936]
[1767698793524,1.48078098,3237.3,3235.7,6.18104274]
[1767698793739,1.49628693,3237.1,3235.7,3.09052137]
[1767698793885,1.51161477,3236.9,3235.7,3.09052137]
[1767698794113,1.51161477,3236.7,3235.6,3.09061688]
[1767698794614,1.51161477,3236.7,3235.6,6.18123376]
[1767698794932,1.51161477,3236.7,3235.6,7.89074312]
[1767698795909,3.08940717,3236.9,3235.8,3.09042586]
[1767698796115,1.11894072,3236.8,3235.8,3.09042586]
[1767698797845,0.30894072,3236.8,3235.8,4.79993522]
[1767698798021,0.81,3236.7,3235.8,4.79993522]
[1767698799249,0.30894072,3236.8,3235.9,1.70950936]
[1767698799439,0.81,3236.7,3235.9,1.70950936]
[1767698799741,0.002,3236.5,3235.9,1.70950936]
[1767698800144,0.002,3236.5,3235.9,4.79981928]
[1767698801156,0.81,3236.4,3235.9,4.79981928]
[1767698802252,0.81,3236.3,3236.0,1.70950936]
[1767698802545,0.002,3236.5,3235.7,1.70950936]
[1767698802744,0.002,3236.5,3235.7,1.8804603]
[1767698802931,0.81,3236.4,3235.7,1.8804603]
[1767698803328,0.002,3236.5,3235.7,1.8804603]
[1767698803642,0.81,3236.3,3235.7,1.8804603]
[1767698803946,0.002,3236.5,3236.2,1.70950936]
[1767698804145,0.81,3236.4,3236.2,1.70950936]
[1767698804456,0.002,3236.5,3236.2,1.70950936]
[1767698804626,0.81,3236.4,3236.2,1.70950936]
[1767698808361,0.81,3236.4,3236.0,1.70950936]
[1767698808535,0.81,3236.3,3236.0,1.70950936]
[1767698811866,0.81,3236.2,3236.0,1.70950936]
[1767698812052,0.81,3236.2,3236.1,0.001]
[1767698815780,0.81,3236.2,3236.1,1.71050936]
[1767698816480,0.73006859,3236.2,3236.1,1.71050936]
[1767698816657,0.002,3236.5,3236.1,1.71050936]
[1767698816980,0.81,3236.4,3236.1,1.71050936]
[1767698822983,0.76,3236.4,3236.1,1.71050936]
[1767698823695,0.76,3236.4,3236.1,0.001]
[1767698824057,0.76,3236.4,3236.1,1.18604415]
[1767698834198,0.76,3236.4,3236.1,0.001]
[1767698835918,4.23505127,3236.4,3235.9,1.18594652]
[1767698838821,1.14517096,3236.4,3235.9,1.18594652]
[1767698839025,0.76,3236.4,3235.9,1.18594652]
[1767698839393,3.09180844,3236.5,3235.9,1.18594652]
[1767698839723,0.81,3236.4,3235.9,1.18594652]
[1767698840017,0.81,3236.3,3235.9,1.18594652]
[1767698840188,0.81,3236.3,3236.0,1.18504415]
[1767698840386,0.81,3236.3,3236.1,1.18504415]
[1767698841002,0.002,3236.5,3236.1,1.18504415]
[1767698841220,0.81,3236.4,3236.1,1.18504415]
[1767698841990,0.002,3236.5,3236.1,1.18504415]
[1767698842190,0.81,3236.4,3236.1,1.18504415]
[1767698843822,0.002,3236.5,3236.1,1.18504415]
[1767698843995,0.81,3236.4,3236.1,1.18504415]
[1767698844211,0.002,3236.5,3236.1,1.18504415]
[1767698844425,0.81,3236.4,3236.1,1.18504415]
[1767698846138,0.002,3236.5,3236.1,1.18504415]
[1767698846332,0.81,3236.4,3236.1,1.18504415]
[1767698848138,0.812,3236.4,3236.1,1.18504415]
[1767698853439,0.002,3236.4,3236.1,1.18504415]
[1767698853736,0.812,3236.4,3236.1,1.18504415]
[1767698854647,0.002,3236.4,3236.1,1.18504415]
[1767698854835,0.812,3236.4,3236.1,1.18504415]
[1767698855143,0.002,3236.4,3236.1,1.18504415]
[1767698855439,0.812,3236.4,3236.1,1.18504415]
[1767698855841,3.89926066,3237.1,3236.5,0.97192378]
[1767698856043,0.81,3237.0,3236.5,0.97192378]
[1767698857437,0.81,3237.0,3236.1,3.09013485]
[1767698857635,0.81,3237.0,3236.2,0.97192378]
[1767698857853,1.5088394,3237.0,3236.2,0.97192378]
[1767698858040,7.6875159,3237.0,3236.2,0.97192378]
[1767698859016,7.6875159,3237.0,3235.9,0.97282615]
[1767698859945,7.6875159,3237.0,3236.5,0.001]
[1767698860242,0.002,3236.7,3235.9,0.97282615]
[1767698860748,0.002,3236.7,3235.5,0.97192378]
[1767698860749,0.02171182,3236.4,3235.5,0.97192378]
[1767698861041,0.81,3236.3,3235.5,0.97192378]
[1767698862464,3.09004387,3236.2,3235.5,0.97192378]
[1767698862668,6.18008774,3236.2,3235.4,0.001]
[1767698862881,0.69899931,3236.1,3235.4,0.001]
[1767698863029,0.69899931,3236.1,3235.4,0.97292378]
[1767698863230,0.81,3236.0,3235.4,0.97292378]
[1767698863431,0.81,3235.9,3235.4,0.97292378]
[1767698863651,0.81,3235.9,3235.5,0.97192378]
[1767698865853,3.09019578,3236.1,3235.5,0.97192378]
[1767698866178,0.81,3236.0,3235.5,0.97192378]
[1767698866873,0.81,3236.0,3235.4,0.001]
[1767698867659,6.1806607,3235.9,3235.4,0.001]
[1767698867841,0.69906607,3235.8,3235.4,0.001]
[1767698869606,3.09052137,3235.7,3235.4,0.001]
[1767698870614,6.20275456,3235.7,3235.1,0.97192378]
[1767698870790,0.02171182,3235.4,3234.7,0.97192378]
[1767698871096,0.81,3235.3,3234.7,0.97192378]
[1767698871892,3.90093545,3235.3,3234.7,0.97192378]
[1767698874101,0.81,3235.3,3234.7,0.97192378]
[1767698874601,3.11258596,3235.4,3234.7,0.97192378]
[1767698874902,0.81,3235.3,3234.7,0.97192378]
[1767698875285,0.81,3235.2,3234.7,0.97192378]
[1767698875486,0.02171182,3235.1,3234.7,0.97192378]
[1767698876306,3.92284494,3235.1,3234.7,0.97192378]
[1767698877314,0.83171182,3235.1,3234.7,0.97192378]
[1767698877787,3.92280674,3235.1,3234.7,0.97192378]
[1767698877988,0.83171182,3235.1,3234.7,0.97192378]
[1767698878188,3.92281206,3235.1,3234.7,0.97192378]
[1767698878417,3.11281206,3235.1,3234.7,0.97192378]
[1767698878617,0.81,3235.0,3234.7,0.97192378]
[1767698880102,0.02171182,3235.4,3234.7,0.97192378]
[1767698880303,0.02171182,3235.4,3234.8,0.96691261]
[1767698880618,0.02171182,3235.4,3235.0,0.96691261]
[1767698880931,0.83171182,3235.4,3235.0,0.96691261]
[1767698881916,3.11228004,3235.7,3235.0,0.96691261]
[1767698882118,0.81,3235.6,3235.0,0.96691261]
[1767698884930,0.02171182,3235.7,3235.0,0.96691261]
[1767698885118,0.81,3235.6,3235.0,0.96691261]
[1767698885431,3.90063351,3235.6,3235.0,0.96691261]
[1767698885602,3.90063351,3235.6,3235.0,0.96791261]
[1767698886003,0.02171182,3235.5,3235.0,0.96791261]
[1767698886806,0.02171182,3235.3,3234.9,0.94060864]
[1767698888918,3.900664,3235.6,3235.0,0.94060864]
[1767698888919,0.81,3235.6,3235.0,0.94060864]
[1767698889210,0.81,3235.8,3235.0,0.94060864]
[1767698889413,0.81,3235.8,3235.1,0.94060864]
[1767698892049,3.11210747,3235.9,3235.3,0.94060864]
[1767698892352,0.02171182,3238.5,3235.4,0.94060864]
[1767698892353,0.02171182,3236.3,3235.4,0.94060864]
[1767698892551,0.02171182,3236.3,3235.6,0.94060864]
[1767698893652,0.02171182,3236.5,3235.6,0.94060864]
[1767698893861,3.92331903,3236.7,3236.0,0.94060864]
[1767698893862,0.002,3236.7,3236.0,0.94060864]
[1767698894149,0.02171182,3236.6,3236.0,0.94060864]
[1767698894327,0.02171182,3236.6,3236.1,0.94060864]
[1767698894918,0.002,3236.7,3236.1,0.94060864]
[1767698894919,0.02371182,3236.7,3236.1,0.94060864]
[1767698895118,0.02371182,3236.7,3236.1,0.93860864]
[1767698895355,0.02171182,3236.5,3235.9,0.94060864]
[1767698895664,0.02171182,3236.3,3235.9,0.94060864]
[1767698896018,3.11327916,3236.7,3236.1,0.94060864]
[1767698896019,0.002,3236.7,3236.1,0.94060864]
[1767698896356,0.12983992,3237.1,3236.9,0.94060864]
[1767698898755,0.12983992,3237.1,3237.0,0.94060864]
[1767698900470,0.12983992,3237.1,3236.5,0.94060864]
[1767698901384,0.12983992,3237.1,3236.6,0.94060864]
[1767698901683,0.12983992,3237.1,3236.7,0.94060864]
[1767698902450,0.12983992,3237.1,3236.3,3.8999238]
[1767698902451,0.02171182,3237.0,3236.0,0.94060864]
[1767698902671,0.02171182,3237.0,3236.2,4.03058573]
[1767698902876,0.02171182,3237.0,3236.3,4.03055466]
[1767698903299,0.02171182,3237.0,3236.4,0.94060864]
[1767698903874,0.02171182,3237.0,3236.0,0.94060864]
[1767698903875,0.02171182,3236.8,3236.0,0.94060864]
[1767698904092,0.02171182,3236.8,3236.1,0.94060864]
[1767698904294,0.02171182,3236.8,3236.1,0.92752874]
[1767698904464,0.002,3237.7,3236.9,0.94060864]
[1767698904662,0.002,3237.7,3236.2,4.58229081]
[1767698904663,0.002,3237.7,3237.1,0.94060864]
[1767698904877,3.09061514,3237.7,3237.1,0.94060864]
[1767698905076,0.31126151,3237.6,3236.8,0.94060864]
[1767698906728,6.48873241,3237.6,3236.6,0.94060864]
[1767698910584,11.07102322,3237.6,3236.2,0.94060864]
[1767698910783,1.1094735,3237.5,3236.6,0.001]
[1767698911204,0.002,3237.3,3236.6,0.001]
[1767698911671,0.002,3237.3,3236.6,0.91935468]
[1767698912470,0.002,3237.3,3236.7,0.91835468]
[1767698913476,0.002,3237.6,3237.2,0.91835468]
[1767698914306,0.002,3237.7,3237.5,0.91835468]
[1767698915570,0.002,3238.1,3237.5,0.91835468]
[1767698915809,0.002,3238.1,3237.6,0.91835468]
[1767698916407,0.002,3238.1,3237.2,3.63906965]
[1767698916584,0.002,3238.1,3237.3,0.91835468]
[1767698917274,0.39241118,3238.1,3237.3,0.91835468]
[1767698917696,0.39241118,3238.1,3237.3,4.00734516]
[1767698917891,0.39241118,3238.1,3237.4,0.91835468]
[1767698918595,0.002,3238.1,3237.4,0.91835468]
[1767698918905,0.002,3238.3,3237.7,0.91835468]
[1767698919414,0.002,3238.3,3237.8,0.91835468]
[1767698923303,0.002,3238.1,3237.8,0.91835468]
[1767698923799,0.002,3238.1,3237.7,0.001]
[1767698924187,0.002,3238.1,3237.7,4.00795629]
[1767698924387,0.002,3238.1,3237.7,4.71763057]
[1767698924596,0.809,3238.8,3238.0,5.50064549]
[1767698924782,0.809,3238.8,3238.0,0.91835468]
[1767698925303,0.809,3238.8,3238.1,0.91835468]
[1767698925515,0.002,3238.9,3238.1,0.91835468]
[1767698925721,0.002,3238.9,3238.2,0.91835468]
[1767698928336,0.002,3238.9,3238.2,4.00648367]
[1767698928628,0.002,3238.9,3238.3,0.91835468]
[1767698929008,0.002,3238.9,3238.1,0.91835468]
[1767698929532,0.002,3238.9,3237.4,0.91835468]
[1767698929533,0.02171182,3238.2,3237.4,0.91835468]
[1767698929733,0.69703733,3237.9,3236.9,0.91835468]
[1767698930103,0.71874915,3237.8,3236.9,0.91835468]
[1767698930635,0.71874915,3237.8,3236.7,6.17913306]
[1767698930813,0.71874915,3237.8,3236.8,0.70984877]
[1767698931336,0.69703733,3237.5,3236.8,0.70984877]
[1767698931510,0.69703733,3237.5,3236.7,3.08956653]
[1767698932244,0.69703733,3237.5,3236.7,3.08949335]
[1767698933028,0.69703733,3237.5,3236.6,3.09059352]
[1767698933335,0.71874915,3237.3,3236.6,0.001]
[1767698933502,0.69703733,3237.1,3236.6,0.001]
[1767698933699,1.07782118,3237.1,3236.6,0.001]
[1767698934254,0.69703733,3237.0,3236.6,0.001]
[1767698935931,3.08937563,3236.9,3236.6,0.001]
[1767698936105,3.78635844,3237.0,3236.9,0.001]
[1767698936307,3.78635844,3237.0,3236.6,0.001]
[1767698936512,0.41671423,3236.9,3236.6,0.001]
[1767698936818,3.78635844,3237.0,3236.6,0.001]
[1767698937502,3.47003231,3237.1,3236.6,0.001]
[1767698938240,6.55928596,3237.1,3236.6,0.001]
[1767698938737,3.47003231,3237.1,3236.6,0.001]
[1767698939725,6.55928596,3237.1,3236.6,0.001]
[1767698939923,0.6559286,3237.0,3236.6,0.001]
[1767698940437,3.74524729,3237.0,3236.6,0.001]
[1767698941845,0.6559286,3237.0,3236.6,0.94324052]
[1767698942048,0.71874915,3237.3,3236.6,0.94324052]